fUSD/lending_fUSD_20250724
["ID","MTS","AMOUNT","RATE_DAILY","PERIOD"]
[374543236,1753345847706,-210.69438757,0.00026,2]
[374543238,1753345847715,-151.0,0.00026,7]
[374543240,1753345847725,-272.274742,0.00026,7]
[374543241,1753345847734,-151.0,0.00026,7]
[374543244,1753345847743,-151.0,0.00026,7]
[374543246,1753345847753,-4404.83262518,0.00026,2]
[374543248,1753345847762,-151.0,0.00026,7]
[374543250,1753345847771,-151.0,0.00026,7]
[374543252,1753345847781,-151.0,0.00026,7]
[374543254,1753345847790,-151.0,0.00026,7]
[374543256,1753345847799,-151.0,0.00026,7]
[374543258,1753345847809,-151.0,0.00026,7]
[374543260,1753345847818,-4433.65,0.00026,2]
[374543262,1753345847827,-1314.53016273,0.00026,2]
[374543264,1753345847837,-847.5306585,0.00026,2]
[374543266,1753345847846,-151.0,0.00026,7]
[374543268,1753345847857,-293.4564304,0.00026,2]
[374543270,1753345847867,-151.0,0.00026,7]
[374543272,1753345847876,-151.0,0.00026,7]
[374543274,1753345847885,-151.0,0.00026,7]
[374543276,1753345847895,-292.67522,0.00026,7]
[374543278,1753345847905,-380.616328,0.00026,7]
[374543280,1753345847914,-151.0,0.00026,7]
[374543282,1753345847924,-380.616328,0.00026,7]
[374543284,1753345847933,-201.840783,0.00026,7]
[374543286,1753345847943,-201.840783,0.00026,7]
[374543288,1753345847952,-151.0,0.00026,7]
[374543290,1753345847962,-151.0,0.00026,7]
[374543292,1753345847972,-151.0,0.00026,7]
[374543294,1753345847981,-151.0,0.00026,7]
[374543296,1753345847990,-151.0,0.00026,7]
[374543298,1753345848000,-151.0,0.00026,7]
[374543300,1753345848010,-151.0,0.00026,7]
[374543302,1753345848021,-151.0,0.00026,7]
[374543304,1753345848032,-151.0,0.00026,7]
[374543306,1753345848042,-151.0,0.00026,7]
[374543308,1753345848052,-151.0,0.00026,7]
[374543310,1753345848063,-151.0,0.00026,7]
[374543312,1753345848072,-151.0,0.00026,7]
[374543314,1753345848081,-151.0,0.00026,7]
[374543316,1753345848091,-151.0,0.00026,7]
[374543318,1753345848103,-151.0,0.00026,7]
[374543320,1753345848113,-151.0,0.00026,7]
[374543322,1753345848122,-151.0,0.00026,7]
[374543324,1753345848132,-151.0,0.00026,7]
[374543326,1753345848142,-151.0,0.00026,7]
[374543328,1753345848152,-151.0,0.00026,7]
[374543330,1753345848161,-151.0,0.00026,7]
[374543332,1753345848171,-151.6929,0.00026,7]
[374543334,1753345848180,-170.352722,0.00026,7]
[374543336,1753345848190,-202.078526,0.00026,7]
[374543338,1753345848200,-202.078526,0.00026,7]
[374543340,1753345848211,-202.078526,0.00026,7]
[374543342,1753345848221,-202.078526,0.00026,7]
[374543344,1753345848230,-151.0,0.00026,7]
[374543346,1753345848240,-162.612101,0.00026,7]
[374543348,1753345848250,-151.0,0.00026,7]
[374543351,1753345848259,-151.0,0.00026,7]
[374543353,1753345848269,-237.938858,0.00026,7]
[374543355,1753345848279,-237.938858,0.00026,7]
[374543357,1753345848288,-151.0,0.00026,7]
[374543359,1753345848298,-151.0,0.00026,7]
[374543361,1753345848308,-5000.0,0.00026,2]
[374543363,1753345848317,-151.0,0.00026,7]
[374543365,1753345848327,-151.0,0.00026,7]
[374543367,1753345848336,-151.0,0.00026,7]
[374543369,1753345848346,-151.0,0.00026,7]
[374543371,1753345848357,-151.0,0.00026,7]
[374543373,1753345848366,-158.147266,0.00026,7]
[374543375,1753345848376,-151.0,0.00026,7]
[374543377,1753345848386,-151.0,0.00026,7]
[374543379,1753345848395,-151.0,0.00026,7]
[374543381,1753345848405,-152.545797,0.00026,7]
[374543382,1753345848415,-151.0,0.00026,7]
[374543383,1753345848424,-151.0,0.00026,7]
[374543384,1753345848435,-151.0,0.00026,7]
[374543385,1753345848445,-151.0,0.00026,7]
[374543386,1753345848455,-151.0,0.00026,7]
[374543387,1753345848466,-151.0,0.00026,7]
[374543388,1753345848476,-164.518548,0.00026,7]
[374543389,1753345848486,-153.144637,0.00026,7]
[374543390,1753345848495,-151.0,0.00026,7]
[374543392,1753345848505,-151.0,0.00026,7]
[374543394,1753345848516,-151.0,0.00026,7]
[374543396,1753345848526,-151.0,0.00026,7]
[374543398,1753345848537,-151.0,0.00026,7]
[374543400,1753345848547,-151.0,0.00026,7]
[374543402,1753345848558,-151.0,0.00026,7]
[374543404,1753345848568,-151.0,0.00026,7]
[374543406,1753345848579,-160.811708,0.00026,7]
[374543408,1753345848590,-151.0,0.00026,7]
[374543410,1753345848602,-151.0,0.00026,7]
[374543412,1753345848612,-151.0,0.00026,7]
[374543414,1753345848624,-151.0,0.00026,7]
[374543416,1753345848634,-151.0,0.00026,7]
[374543418,1753345848644,-151.0,0.00026,7]
[374543420,1753345848654,-151.983361,0.00026,7]
[374543422,1753345848664,-151.0,0.00026,7]
[374543424,1753345848676,-151.0,0.00026,7]
[374543426,1753345848685,-174.211317,0.00026,7]
[374543428,1753345848696,-174.211317,0.00026,7]
[374543430,1753345848706,-152.008378,0.00026,7]
[374543432,1753345848715,-154.339358,0.00026,7]
[374543434,1753345848726,-233.797699,0.00026,7]
[374543436,1753345848736,-233.797699,0.00026,7]
[374543438,1753345848746,-233.797699,0.00026,7]
[374543440,1753345848756,-233.797699,0.00026,7]
[374543442,1753345848765,-151.0,0.00026,7]
[374543445,1753345848776,-254.74861,0.00026,7]
[374543447,1753345848785,-254.74861,0.00026,7]
[374543449,1753345848794,-254.74861,0.00026,7]
[374543451,1753345848804,-254.74861,0.00026,7]
[374543453,1753345848813,-151.6902,0.00026,7]
[374543455,1753345848823,-151.0,0.00026,7]
[374543457,1753345848832,-151.0,0.00026,7]
[374543459,1753345848842,-432.550073,0.00026,7]
[374543461,1753345848853,-432.550073,0.00026,7]
[374543463,1753345848863,-151.0,0.00026,7]
[374543465,1753345848872,-151.0,0.00026,7]
[374543467,1753345848882,-432.550073,0.00026,7]
[374543469,1753345848892,-432.550073,0.00026,7]
[374543471,1753345848902,-305.96337,0.00026,7]
[374543473,1753345848911,-305.96337,0.00026,7]
[374543475,1753345848921,-305.96337,0.00026,7]
[374543477,1753345848932,-305.96337,0.00026,7]
[374543479,1753345848942,-160.0,0.00026,7]
[374543481,1753345848951,-839.91269601,0.00026,3]
[374543483,1753345848961,-151.0,0.0002601,7]
[374543485,1753345848971,-151.0,0.0002601,7]
[374543487,1753345848981,-151.0,0.0002601,7]
[374543489,1753345848991,-12413.0041521,0.00026028,3]
[374543491,1753345849001,-344.56,0.00026037,2]
[374543493,1753345849011,-284.0,0.00026038,2]
[374543495,1753345849024,-457.03782412,0.00026066,2]
[374543497,1753345849035,-239.84119403,0.00026067,2]
[374543499,1753345849046,-284.0,0.00026088,7]
[374543501,1753345849056,-300.0,0.00026092,2]
[374543503,1753345849068,-284.0,0.00026113,2]
[374543505,1753345849079,-977.34,0.00026121,2]
[374543507,1753345849090,-1083.0,0.00026132,2]
[374543509,1753345849103,-6619.48948543,0.00026174,3]
[374543511,1753345849113,-1135.0,0.00026199,2]
[374543514,1753345849127,-12413.0041521,0.00026208,3]
[374543515,1753345849138,-632.65421294,0.0002621,14]
[374543517,1753345849149,-6619.48948543,0.00026218,3]
[374543519,1753345849160,-150.0,0.00026228,7]
[374543521,1753345849172,-150.0,0.00026228,7]
[374543523,1753345849183,-722.0,0.00026228,7]
[374543525,1753345849194,-511.0,0.00026234,6]
[374543527,1753345849205,-150.0,0.00026267,2]
[374543529,1753345849216,-201.0,0.0002628,2]
[374543532,1753345849230,-207.0,0.0002628,2]
[374543534,1753345849242,-294.14,0.00026281,2]
[374543535,1753345849252,-150.0,0.00026285,2]
[374543538,1753345849263,-150.0,0.00026292,2]
[374543540,1753345849273,-150.0,0.00026292,2]
[374543542,1753345849284,-659.15,0.00026293,2]
[374543544,1753345849294,-150.0,0.00026363,2]
[374543546,1753345849304,-257.0,0.00026373,2]
[374543548,1753345849313,-151.0,0.00026375,2]
[374543550,1753345849323,-161.9,0.00026379,2]
[374543552,1753345849333,-585.38791116,0.0002641,2]
[374543554,1753345849342,-150.0,0.0002641,2]
[374543556,1753345849353,-500.0,0.00026473,2]
[374543558,1753345849362,-500.0,0.00026473,2]
[374543560,1753345849372,-503.61642666,0.00026473,2]
[374543562,1753345849382,-500.0,0.00026473,2]
[374543564,1753345849391,-500.0,0.00026473,2]
[374543566,1753345849401,-627.87193417,0.00026473,2]
[374543568,1753345849411,-501.95512263,0.00026473,2]
[374543570,1753345849420,-500.0,0.00026473,2]
[374543572,1753345849431,-500.0,0.00026473,2]
[374543574,1753345849440,-500.0,0.00026473,2]
[374543576,1753345849449,-500.49275237,0.00026473,2]
[374543578,1753345849459,-503.17365136,0.00026473,2]
[374543580,1753345849469,-156.98841903,0.00026473,2]
[374543582,1753345849479,-10000.0,0.00026473,2]
[374543584,1753345849489,-12413.0041521,0.00026482,3]
[374543586,1753345849499,-6619.48948543,0.00026482,3]
[374543588,1753345849508,-12413.0041521,0.00026482,3]
[374543590,1753345849518,-632.65421294,0.00026486,15]
[374543592,1753345849528,-19858.4684563,0.00026491,3]
[374543594,1753345849538,-49652.0166085,0.00026491,3]
[374543596,1753345849548,-12413.0041521,0.000265,3]
[374543598,1753345849557,-111717.037369,0.00026501,3]
[374543600,1753345849567,-160.28,0.00026501,2]
[374543602,1753345849577,-164.66709859,0.00026501,2]
[374543604,1753345849586,-202.49727184,0.00026502,7]
[374543606,1753345849597,-200.0,0.00026502,7]
[374543608,1753345849609,-722.0,0.00026502,7]
[374543610,1753345849619,-168.0,0.00026503,2]
[374543613,1753345849628,-1383.0,0.00026506,2]
[374543614,1753345849638,-257.0,0.00026508,2]
[374543617,1753345849648,-10000.0,0.00026509,2]
[374543619,1753345849661,-12413.0041521,0.00026511,3]
[374543621,1753345849670,-118788.42677832,0.00026511,2]
[374543699,1753345850635,-36497.97264,0.00026511,2]
[374543701,1753345850647,-338.01139866,0.00026511,2]
[374543703,1753345850658,-2805.66563332,0.00026511,2]
[374543734,1753345850945,-17715.93934147,0.00026511,2]
[374543750,1753345851095,-2872.93100714,0.00026511,2]
[374544070,1753345904638,543.0,0.0002739,120]
[374544072,1753345954292,437.12018681,0.0002739,120]
[374544073,1753345958982,374.0,0.0002739,120]
[374544075,1753346021853,1197.0,0.0002739,120]
[374544076,1753346178600,438.0,0.0002739,120]
[374544077,1753346299720,-155.99844017,0.00026137,30]
[374544078,1753346299742,-155.99844017,0.00026411,30]
[374544079,1753346299803,-156.87,0.00027397,80]
[374544080,1753346299825,-1598.7,0.00027425,30]
[374544081,1753346299846,-500.0,0.00027452,120]
[374544082,1753346299866,-500.0,0.00027452,120]
[374544083,1753346299887,-500.0,0.00027452,120]
[374544084,1753346299924,-1479.48605909,0.00028,120]
[374544085,1753346299946,-1000.0,0.00028,120]
[374544086,1753346347243,427.3267529,0.00028,30]
[374544087,1753346403100,161.90368415,0.00028,30]
[374544088,1753346416401,414.89,0.00024945,120]
[374544089,1753346444943,1948.82662352,0.00028,30]
[374544090,1753346551352,500.0,0.00016657,2]
[374544091,1753346558783,500.0,0.00016657,2]
[374544092,1753346565969,500.0,0.00016657,2]
[374544093,1753346573273,500.0,0.00016657,2]
[374544094,1753346584040,500.0,0.00016657,2]
[374544095,1753346595065,160.0,0.000273,120]
[374544096,1753346595990,160.0,0.000273,120]
[374544097,1753346596635,160.0,0.000273,120]
[374544100,1753346648031,160.0,0.000273,120]
[374544102,1753346686530,160.0,0.000273,120]
[374544103,1753346688103,160.0,0.000273,120]
[374544104,1753346688561,160.0,0.000273,120]
[374544105,1753346696151,160.0,0.000273,120]
[374544106,1753346696496,160.0,0.000273,120]
[374544107,1753346717128,160.0,0.000273,120]
[374544108,1753346717673,160.0,0.000273,120]
[374544109,1753346718029,160.0,0.000273,120]
[374544116,1753346766852,160.0,0.000273,120]
[374544129,1753346853167,150.0,0.000273,120]
[374544130,1753346854228,150.0,0.000273,120]
[374544131,1753346871280,150.0,0.000273,120]
[374544133,1753346881613,152.04,0.00013699,2]
[374544134,1753346886703,150.93,0.000273,120]
[374544135,1753346910280,3000.0,0.000273,120]
[374544137,1753346926172,1209.0,0.0002739,120]
[374544138,1753346969603,1588.5,0.00024658,120]
[374544139,1753346986395,651.0,0.0002739,120]
[374544140,1753347004070,2000.0,0.0002739,120]
[374544143,1753347031843,-896.12,0.00019178,2]
[374544144,1753347031853,-2500.0,0.00019683,2]
[374544145,1753347031863,-152.04,0.00020187,2]
[374544146,1753347031873,-896.12,0.00020906,2]
[374544147,1753347031884,-2500.0,0.00021096,2]
[374544148,1753347031895,-2420.936511,0.0002179,2]
[374544149,1753347031905,-160.0,0.00022,2]
[374544150,1753347031915,-329.0,0.00022,2]
[374544151,1753347031924,-2500.0,0.00022269,2]
[374544152,1753347031933,-1200.0,0.00022351,2]
[374544153,1753347031943,-500.0,0.00022352,2]
[374544154,1753347031952,-500.0,0.00022352,2]
[374544155,1753347031961,-500.0,0.00022352,2]
[374544156,1753347031971,-500.0,0.00022352,2]
[374544157,1753347031981,-500.0,0.00022352,2]
[374544158,1753347031991,-500.0,0.00022352,2]
[374544159,1753347032000,-198.8967251,0.0002237,2]
[374544160,1753347032010,-198.8967251,0.00022606,2]
[374544161,1753347032020,-300.0,0.00022612,2]
[374544162,1753347032029,-2500.0,0.00022613,2]
[374544163,1753347032039,-517.98666639,0.00022634,2]
[374544167,1753347032129,-339.01560431,0.00022634,2]
[374544168,1753347032142,-39.1177293,0.00022634,2]
[374544169,1753347032152,-551.0,0.00022691,2]
[374544170,1753347032162,-198.8967251,0.00022841,2]
[374544171,1753347032173,-480.0892523,0.000229,8]
[374544172,1753347032183,-301.04619858,0.00023009,2]
[374544173,1753347032193,-198.8967251,0.00023076,2]
[374544174,1753347032203,-919.30862722,0.00023177,2]
[374544175,1753347032213,-322.0,0.0002318,2]
[374544176,1753347032223,-511.0,0.00023234,2]
[374544177,1753347032232,-118.6447424,0.00023245,8]
[374544179,1753347032244,-280.80301552,0.00023245,8]
[374544182,1753347032288,-80.6414943,0.00023245,8]
[374544184,1753347032298,-862.0,0.00023296,2]
[374544186,1753347032308,-172.28,0.00023354,2]
[374544188,1753347032318,-643.2004957,0.00023412,2]
[374544190,1753347032330,-269.44650001,0.00023412,2]
[374544212,1753347032485,-276.35300429,0.00023412,2]
[374544214,1753347032495,-480.08925222,0.0002359,9]
[374544216,1753347032504,-480.08925222,0.00023934,10]
[374544218,1753347032513,-1906.46,0.00024091,2]
[374544220,1753347032523,-477.18900901,0.00024198,2]
[374544222,1753347032532,-250.0,0.000242,2]
[374544224,1753347032541,-2500.0,0.000242,2]
[374544226,1753347032550,-211.01152796,0.00024209,2]
[374544228,1753347032560,-511.0,0.00024255,3]
[374544230,1753347032571,-480.08925222,0.00024279,10]
[374544232,1753347032581,-896.12,0.00024362,2]
[374544234,1753347032591,-316.0,0.0002437,2]
[374544236,1753347032600,-1200.0,0.00024393,2]
[374544238,1753347032609,-1000.0,0.000245,2]
[374544240,1753347032619,-202.0,0.00024544,2]
[374544242,1753347032628,-371.0,0.00024556,2]
[374544244,1753347032638,-666.0,0.00024565,3]
[374544246,1753347032648,-282.68728815,0.00024613,2]
[374544248,1753347032657,-458.59,0.00024613,2]
[374544250,1753347032667,-480.08925222,0.00024624,11]
[374544252,1753347032677,-180.0,0.00024634,7]
[374544254,1753347032687,-600.0,0.00024698,2]
[374544256,1753347032697,-196.4876358,0.00024698,2]
[374544258,1753347032706,-4181.034672,0.00024698,2]
[374544261,1753347032716,-346.92554585,0.00024698,2]
[374544263,1753347032726,-231.28369723,0.00024698,2]
[374544265,1753347032735,-839.91269601,0.00024764,2]
[374544267,1753347032744,-200.0,0.00024776,2]
[374544269,1753347032753,-300.0,0.00024864,2]
[374544271,1753347032762,-2803.98,0.00024868,2]
[374544273,1753347032771,-5000.0,0.00024943,2]
[374544275,1753347032780,-200.49,0.0002495,2]
[374544277,1753347032790,-480.08925222,0.00024969,12]
[374544279,1753347032799,-152.98,0.00025,2]
[374544281,1753347032809,-172.0,0.00025,7]
[374544283,1753347032820,-160.0,0.00025,2]
[374544285,1753347032830,-979.752115,0.00025002,2]
[374544287,1753347032843,-1771.247885,0.00025002,2]
[374544289,1753347032852,-1162.86258888,0.00025034,2]
[374544291,1753347032862,-200.0,0.000251,7]
[374544293,1753347032872,-250.0,0.00025243,2]
[374544295,1753347032882,-511.0,0.00025277,5]
[374544297,1753347032891,-2424.35391999,0.00025304,2]
[374544299,1753347032899,-480.08925222,0.00025314,12]
[374544301,1753347032908,-1054.28,0.00025367,2]
[374544303,1753347032915,-373.14615017,0.00025381,2]
[374544310,1753347032968,-232.41616068,0.00025381,2]
[374544312,1753347032978,-23900.0,0.00025382,2]
[374544314,1753347032987,-304.79,0.00025471,2]
[374544317,1753347032997,-309.0,0.0002555,2]
[374544319,1753347033007,-183.86,0.00025588,2]
[374544320,1753347033016,-1000.0,0.00025657,2]
[374544322,1753347033025,-480.08925222,0.00025659,13]
[374544324,1753347033036,-183.86,0.00025673,2]
[374544326,1753347033046,-183.86,0.00025758,2]
[374544328,1753347033056,-300.0,0.00025833,2]
[374544330,1753347033065,-183.86,0.00025843,2]
[374544332,1753347033074,-211.01152796,0.000259,3]
[374544334,1753347033083,-839.91269601,0.000259,3]
[374544336,1753347033091,-1390.897533,0.0002598,16]
[374544338,1753347033100,-3892.584,0.0002598,12]
[374544340,1753347033110,-231.475,0.0002598,12]
[374544342,1753347033120,-2010.0,0.00026,2]
[374544344,1753347033129,-560.39,0.00026,2]
[374544346,1753347033139,-160.0,0.00026,7]
[374544348,1753347033149,-160.0,0.00026,7]
[374544350,1753347033158,-480.08925222,0.00026003,14]
[374544352,1753347033168,-200.0,0.00026046,2]
[374544354,1753347033178,-163.17845202,0.00026067,2]
[374544356,1753347033187,-239.84119403,0.00026067,2]
[374544358,1753347033197,-896.12,0.0002609,2]
[374544360,1753347033206,-833.0,0.00026173,2]
[374544362,1753347033216,-2903.93478999,0.00026193,5]
[374544364,1753347033226,-200.49,0.00026197,2]
[374544366,1753347033238,-511.0,0.00026298,6]
[374544368,1753347033248,-480.08925222,0.00026348,14]
[374544370,1753347033257,-150.0,0.0002638,2]
[374544372,1753347033267,-4287.39079092,0.00026416,2]
[374544374,1753347033276,-162.579823,0.00026416,2]
[374544376,1753347033286,-392.73081578,0.00026484,2]
[374544378,1753347033296,-2064.0,0.00026486,2]
[374544380,1753347033306,-150.0,0.00026502,7]
[374544382,1753347033316,-150.0,0.00026502,2]
[374544384,1753347033326,-48.5693335,0.00026502,7]
[374544467,1753347034300,-621.4306665,0.00026502,7]
[374544469,1753347034311,-297.43232331,0.00026502,7]
[374544471,1753347034323,-150.0,0.00026502,2]
[374544474,1753347034334,-500.0,0.00026502,7]
[374544475,1753347034347,-150.0,0.00026502,7]
[374544477,1753347034357,-150.0,0.00026502,7]
[374544479,1753347034367,-500.0,0.00026502,7]
[374544481,1753347034376,-2339.07,0.0002651,2]
[374544483,1753347034386,-151.81878931,0.00026511,2]
[374544485,1753347034396,-208.31927975,0.00026511,2]
[374544487,1753347034406,-8556.45621221,0.00026511,2]
[374544577,1753347038792,-286.76,0.00024198,2]
[374544579,1753347038802,-31.22127747,0.00026511,2]
[374544589,1753347038891,-177.09800227,0.00026511,2]
[374544591,1753347038900,-4982.98081384,0.00026511,2]
[374544594,1753347038912,-14525.41002015,0.00026511,2]
[374544596,1753347038924,-402.04444686,0.00026511,2]
[374544600,1753347038954,-337.95501913,0.00026511,2]
[374544602,1753347038967,-3056.91715826,0.00026511,2]
[374544605,1753347038978,-1875.39357904,0.00026511,2]
[374544610,1753347039015,-1307.25,0.00026511,2]
[374544612,1753347039027,-1359.06648,0.00026511,2]
[374544718,1753347040111,-651.60680011,0.00026511,2]
[374544739,1753347040358,-5000.0,0.00026511,2]
[374544745,1753347040409,-1076.0750025,0.00026511,2]
[374544996,1753347042744,-151.84997615,0.00026511,2]
[374544998,1753347042755,-753.05589703,0.00026511,2]
[374545003,1753347042850,-521.672309,0.00026511,2]
[374545010,1753347042958,-2126.21417117,0.00026511,2]
[374545012,1753347042968,-150.0,0.00026516,2]
[374545014,1753347042978,-150.0,0.0002652,2]
[374545016,1753347042988,-150.0,0.0002652,2]
[374545019,1753347042998,-150.0,0.0002652,2]
[374545020,1753347043009,-150.0,0.0002652,2]
[374545023,1753347043019,-150.0,0.0002652,2]
[374545025,1753347043028,-151.0,0.0002652,7]
[374545027,1753347043038,-151.213319,0.0002652,7]
[374545028,1753347043048,-151.0,0.0002652,7]
[374545030,1753347043058,-151.0,0.0002652,7]
[374545033,1753347043067,-185.802218,0.0002652,7]
[374545034,1753347043081,-151.0,0.0002652,7]
[374545037,1753347043091,-155.297828,0.0002652,7]
[374545039,1753347043100,-233.797699,0.0002652,7]
[374545040,1753347043110,-233.797699,0.0002652,7]
[374545043,1753347043120,-254.74861,0.0002652,7]
[374545045,1753347043129,-305.96337,0.0002652,7]
[374545046,1753347043139,-305.96337,0.0002652,7]
[374545048,1753347043148,-150.0,0.0002652,2]
[374545050,1753347043158,-150.0,0.0002652,2]
[374545053,1753347043167,-150.0,0.0002652,2]
[374545055,1753347043178,-156.157473,0.00026521,7]
[374545057,1753347043188,-151.0,0.00026521,7]
[374545060,1753347043197,-151.0,0.00026521,7]
[374545062,1753347043208,-988.5987,0.00026521,7]
[374545064,1753347043218,-988.5987,0.00026521,7]
[374545066,1753347043228,-300.0,0.00026521,3]
[374545068,1753347043237,-300.0,0.00026521,3]
[374545069,1753347043246,-319.857308,0.00026521,3]
[374545072,1753347043256,-151.0,0.00026521,7]
[374545074,1753347043266,-151.0,0.00026521,7]
[374545076,1753347043275,-151.0,0.00026521,7]
[374545078,1753347043284,-152.948296,0.00026521,7]
[374545080,1753347043293,-151.0,0.00026521,7]
[374545082,1753347043303,-211.01152796,0.00026521,7]
[374545084,1753347043312,-839.91269601,0.00026521,7]
[374545086,1753347043321,-151.0,0.00026573,7]
[374545088,1753347043334,-202.078526,0.00026575,7]
[374545090,1753347043344,-202.078526,0.00026575,7]
[374545092,1753347043356,-432.550073,0.00026575,7]
[374545094,1753347043366,-432.550073,0.00026575,7]
[374545096,1753347043376,-665.14392575,0.00026581,10]
[374545098,1753347043386,-150.0,0.00026617,2]
[374545100,1753347043396,-150.0,0.00026623,2]
[374545102,1753347043405,-152.0,0.00026637,6]
[374545104,1753347043414,-152.04,0.00026676,2]
[374545106,1753347043424,-1000.0,0.0002668,2]
[374545107,1753347043435,-807.0,0.00026681,2]
[374545110,1753347043445,-156.522,0.00026681,2]
[374545112,1753347043455,-3354.0,0.00026681,2]
[374545114,1753347043465,-953.0,0.00026681,2]
[374545116,1753347043474,-563.0,0.00026681,2]
[374545117,1753347043484,-2018.0,0.00026681,2]
[374545120,1753347043493,-1269.0,0.00026681,2]
[374545122,1753347043503,-960.0,0.00026681,2]
[374545124,1753347043513,-1289.0,0.00026681,2]
[374545126,1753347043522,-596.0,0.00026681,2]
[374545128,1753347043532,-1688.0,0.00026681,2]
[374545130,1753347043541,-21379.0,0.00026681,2]
[374545132,1753347043550,-150.0,0.00026681,2]
[374545134,1753347043560,-150.0,0.00026681,2]
[374545136,1753347043569,-6055.0,0.00026681,2]
[374545138,1753347043581,-863.0,0.00026681,2]
[374545139,1753347043590,-4129.0,0.00026681,2]
[374545142,1753347043600,-480.08925222,0.00026693,15]
[374545144,1753347043609,-16490.0133,0.00026694,3]
[374545146,1753347043618,-159.4195185,0.00026694,2]
[374545148,1753347043628,-154.80600327,0.00026694,2]
[374545150,1753347043638,-10186.76790339,0.00026694,2]
[374545152,1753347043647,-342.97627353,0.000267,3]
[374545154,1753347043656,-151.0,0.00026713,7]
[374545156,1753347043665,-151.0,0.00026713,7]
[374545158,1753347043675,-354.139638,0.00026713,7]
[374545160,1753347043684,-354.139638,0.00026713,7]
[374545162,1753347043694,-303.0,0.0002673,2]
[374545164,1753347043703,-201.0,0.0002674,2]
[374545166,1753347043713,-207.0,0.0002674,2]
[374545168,1753347043722,-162.57982295,0.00026748,2]
[374545170,1753347043732,-151.0,0.00026753,7]
[374545172,1753347043742,-500.0,0.00026773,2]
[374545174,1753347043752,-488.26516264,0.00026773,2]
[374545176,1753347043761,-500.0,0.00026773,2]
[374545178,1753347043771,-150.0,0.00026776,7]
[374545180,1753347043781,-670.0,0.00026776,7]
[374545182,1753347043790,-150.0,0.00026776,2]
[374545184,1753347043800,-500.0,0.00026776,7]
[374545186,1753347043809,-150.0,0.00026776,7]
[374545188,1753347043819,-500.0,0.00026776,7]
[374545190,1753347043829,-36505.4960261,0.00026784,3]
[374545192,1753347043839,-168.0,0.00026786,2]
[374545194,1753347043848,-839.91269601,0.0002679,3]
[374545196,1753347043858,-151.0,0.00026792,2]
[374545198,1753347043867,-1383.0,0.00026794,7]
[374545200,1753347043876,-151.0,0.00026794,7]
[374545202,1753347043886,-151.0,0.00026794,7]
[374545204,1753347043895,-500.0,0.00026794,2]
[374545205,1753347043904,-500.0,0.00026794,2]
[374545207,1753347043914,-500.0,0.00026794,2]
[374545209,1753347043925,-500.0,0.00026794,2]
[374545211,1753347043934,-500.0,0.00026794,2]
[374545213,1753347043945,-500.0,0.00026794,2]
[374545215,1753347043955,-500.0,0.00026794,2]